bitfinex/quotes_SOLUSD_20241210
["timestamp","ask_amount","ask_price","bid_price","bid_amount"]
[1733800551729,6.0263,211.14,210.92,4.95320588]
[1733800552138,6.0263,211.14,210.95,4.95320588]
[1733800552345,6.0263,211.14,210.79,11.8599]
[1733800552346,6.0263,211.14,210.97,4.95320588]
[1733800552545,6.0263,211.14,210.95,4.95320588]
[1733800552726,5.04679412,211.08,210.9,4.95320588]
[1733800552930,6.0263,211.14,210.93,4.95320588]
[1733800553138,11.07309412,211.14,210.93,4.95320588]
[1733800553341,5.04679412,211.09,210.89,4.95320588]
[1733800553544,5.04679412,211.12,210.89,4.95320588]
[1733800553742,4.54679412,211.12,210.9,5.45320588]
[1733800553942,4.54679412,211.12,210.8,322.0]
[1733800553943,4.54679412,211.1,210.89,5.45320588]
[1733800554139,6.0263,211.14,210.91,44.25658455]
[1733800554347,6.0263,211.14,210.93,5.45320588]
[1733800554533,6.0263,211.14,210.95,5.45320588]
[1733800555053,6.0263,211.14,211.08,5.45320588]
[1733800555237,6.0263,211.14,211.04,5.45320588]
[1733800555437,6.0263,211.29,211.04,5.45320588]
[1733800555654,4.54679412,211.19,210.97,5.45320588]
[1733800555953,4.54679412,211.23,210.97,5.45320588]
[1733800556134,4.54679412,211.23,210.99,5.45320588]
[1733800556335,4.54679412,211.25,211.05,5.45320588]
[1733800556535,4.54679412,211.22,211.0,5.45320588]
[1733800556862,4.54679412,211.22,211.0,44.25658455]
[1733800557158,4.54679412,211.2,210.97,5.45320588]
[1733800557359,4.54679412,211.28,211.0,44.25658455]
[1733800557530,10.57309412,211.29,211.02,38.80337867]
[1733800557729,10.0,211.27,211.0,44.25658455]
[1733800557953,10.57309412,211.29,211.01,0.71045845]
[1733800557954,20.57309412,211.29,211.01,0.71045845]
[1733800558131,6.0263,211.29,211.08,5.45320588]
[1733800558335,6.0263,211.29,211.09,0.71021439]
[1733800558638,6.0263,211.29,211.13,5.45320588]
[1733800558840,6.0263,211.29,211.2,5.45320588]
[1733800559057,6.0263,211.29,211.21,0.70982782]
[1733800559363,6.0263,211.29,211.16,5.45320588]
[1733800559536,6.0263,211.29,211.04,20.0]
[1733800559537,6.0263,211.29,211.17,0.71000652]
[1733800559738,6.0263,211.29,211.15,5.45320588]
[1733800560055,6.0263,211.29,211.16,0.71014803]
[1733800560359,6.0263,211.29,211.13,0.71016232]
[1733800560728,6.0263,211.29,211.09,6.16334302]
[1733800560922,6.0263,211.29,211.06,6.16352911]
[1733800561153,0.12549,211.28,211.1,5.45320588]
[1733800561458,0.12549,211.28,211.11,0.71019639]
[1733800561659,0.12549,211.28,211.15,5.45320588]
[1733800561852,0.12549,211.28,211.12,5.45320588]
[1733800562161,6.0263,211.29,211.17,5.45320588]
[1733800562451,6.0263,211.29,211.23,5.45320588]
[1733800562633,0.6147344,211.3,211.29,5.45320588]
[1733800563028,0.6147344,211.3,211.29,6.16284492]
[1733800563465,0.6147344,211.53,211.44,5.45320588]
[1733800563749,0.6147344,211.53,211.45,0.70927368]
[1733800563953,0.6147344,211.53,211.38,0.70912717]
[1733800564257,4.54679412,211.5,211.32,0.70946504]
[1733800564466,4.54679412,211.5,211.27,5.45320588]
[1733800564631,10.0,211.49,211.25,6.16296977]
[1733800564826,4.54679412,211.42,211.23,0.70976383]
[1733800565034,4.54679412,211.42,211.16,5.45320588]
[1733800565035,6.2506,211.41,211.16,5.45320588]
[1733800565252,6.2506,211.41,211.09,0.71014824]
[1733800565253,4.54679412,211.29,211.09,0.71014824]
[1733800565434,4.54679412,211.29,211.08,1.90176276]
[1733800565435,0.12549,211.27,211.08,1.90176276]
[1733800565635,0.12549,211.25,211.11,5.45320588]
[1733800565928,0.12549,211.27,211.05,6.1637591]
[1733800566130,0.12549,211.27,211.07,5.45320588]
[1733800566436,0.12549,211.27,211.13,5.45320588]
[1733800566639,0.12549,211.27,211.14,6.16331412]
[1733800566939,6.4153188,211.41,211.22,5.45320588]
[1733800567256,0.1647188,211.41,211.37,5.45320588]
[1733800567562,0.1647188,211.41,211.38,6.16258362]
[1733800567734,0.1647188,211.41,211.26,10.0]
[1733800567735,0.1647188,211.41,211.32,5.45320588]
[1733800567939,0.1647188,211.41,211.26,5.45320588]
[1733800568262,0.1647188,211.41,211.36,5.45320588]
[1733800568443,0.1647188,211.41,211.34,0.70922718]
[1733800568637,0.1647188,211.41,211.34,6.16250718]
[1733800568833,0.1647188,211.41,211.34,0.7093013]
[1733800569237,0.1647188,211.41,211.34,6.16250718]
[1733800569567,0.1647188,211.41,211.4,4.95320588]
[1733800569933,0.1647188,211.41,211.4,5.66232045]
[1733800570534,0.1647188,211.41,211.4,67.85434997]
[1733800570960,0.1647188,211.41,211.4,77.85434997]
[1733800571169,0.1647188,211.41,211.4,67.85434997]
[1733800571517,5.04679412,211.65,211.42,4.95320588]
[1733800571645,9.1732,211.67,211.43,0.70912527]
[1733800571966,9.1732,211.67,211.45,4.95320588]
[1733800572162,9.1732,211.67,211.46,0.70902452]
[1733800572460,5.04679412,211.58,211.38,4.95320588]
[1733800572761,15.04679412,211.59,211.36,4.95320588]
[1733800572967,15.04679412,211.59,211.41,4.95320588]
[1733800572968,20.0,211.56,211.41,4.95320588]
[1733800573143,0.6385431,211.61,211.48,4.95320588]
[1733800573343,0.6385431,211.61,211.51,4.95320588]
[1733800573564,0.6385431,211.61,211.46,4.95320588]
[1733800573762,0.6385431,211.61,211.51,4.95320588]
[1733800573965,0.6385431,211.61,211.44,4.95320588]
[1733800574264,5.04679412,211.6,211.4,0.70886146]
[1733800574465,2.9226,211.57,211.35,0.70927987]
[1733800574637,5.04679412,211.58,211.36,4.95320588]
[1733800574839,5.04679412,211.54,211.35,0.70957299]
[1733800575067,0.12549,211.5,211.3,5.66274899]
[1733800575271,20.6385431,211.61,211.4,4.95320588]
[1733800575458,20.6385431,211.61,211.41,0.70925346]
[1733800575655,5.04679412,211.53,211.31,4.95320588]
[1733800575856,20.0,211.45,211.28,0.7095074]
[1733800576070,20.0,211.41,211.22,0.70962535]
[1733800576251,20.0,211.41,211.25,4.95320588]
[1733800576444,20.0,211.41,211.28,4.95320588]
[1733800576653,20.0,211.41,211.26,0.70955969]
[1733800576868,20.0,211.41,211.21,4.95320588]
[1733800576869,0.12549,211.4,211.22,0.7097557]
[1733800577075,0.12549,211.4,211.22,0.70994139]
[1733800577448,20.0,211.39,211.16,4.95320588]
[1733800577651,0.12549,211.38,211.24,4.95320588]
[1733800577874,0.12549,211.38,211.25,0.7098847]
[1733800578100,6.2506,211.56,211.31,38.41514552]
[1733800578385,6.2506,211.56,211.42,4.95320588]
[1733800578550,6.2506,211.56,211.39,4.95320588]
[1733800578744,6.2506,211.56,211.4,0.70921607]
[1733800579352,6.2506,211.56,211.42,4.95320588]
[1733800579674,6.2506,211.56,211.36,4.95320588]
[1733800579975,6.2506,211.56,211.34,4.95320588]
[1733800580178,6.2506,211.56,211.35,0.70930488]
[1733800580359,5.04679412,211.5,211.26,4.95320588]
[1733800580568,5.04679412,211.5,211.21,39.12470865]
[1733800580569,20.0,211.45,211.22,4.95320588]
[1733800580775,20.0,211.45,211.24,4.95320588]
[1733800581082,20.0,211.45,211.28,4.95320588]
[1733800581287,6.2506,211.56,211.22,4.95320588]
[1733800581288,0.12549,211.4,211.22,4.95320588]
[1733800581465,0.12549,211.4,211.25,4.95320588]
[1733800581655,20.0,211.41,211.33,4.95320588]
[1733800581855,12.9226,211.6,211.35,4.95320588]
[1733800582063,5.04679412,211.55,211.33,4.95320588]
[1733800582261,5.04679412,211.55,211.13,36.24797215]
[1733800582262,7.96939412,211.6,211.36,4.95320588]
[1733800582461,5.04679412,211.55,211.36,4.95320588]
[1733800582674,5.04679412,211.59,211.33,4.95320588]
[1733800582873,10.0,211.59,211.35,4.95320588]
[1733800583178,10.0,211.59,211.33,4.95320588]
[1733800583376,10.0,211.57,211.33,4.95320588]
[1733800583784,2.9226,211.6,211.35,4.95320588]
[1733800584079,2.9226,211.6,211.43,4.95320588]
[1733800584284,2.9226,211.6,211.51,4.95320588]
[1733800584486,0.6385431,211.61,211.51,4.95320588]
[1733800584658,0.6385431,211.61,211.48,4.95320588]
[1733800584859,0.6385431,211.61,211.44,0.7091976]
[1733800584860,0.6385431,211.61,211.5,4.95320588]
[1733800585160,0.6385431,211.61,211.54,4.95320588]
[1733800585379,0.6385431,211.61,211.5,4.95320588]
[1733800585576,0.6385431,211.61,211.51,0.70899869]
[1733800585880,0.6385431,211.61,211.5,4.95320588]
[1733800586062,0.6385431,211.61,211.47,0.70878993]
[1733800586063,0.6385431,211.61,211.52,4.95320588]
[1733800586263,0.6385431,211.61,211.56,4.95320588]
[1733800586510,0.6385431,211.61,211.53,4.95320588]
[1733800586685,0.6385431,211.61,211.55,4.95320588]
[1733800586861,0.6385431,211.61,211.59,4.95320588]
[1733800587181,6.4217,211.79,211.59,4.95320588]
[1733800587355,6.4217,211.79,211.57,4.95320588]
[1733800587558,6.4217,211.79,211.59,4.95320588]
[1733800587866,6.4217,211.79,211.64,4.95320588]
[1733800588181,3.4697431,211.84,211.73,4.95320588]
[1733800588385,0.6385431,211.84,211.8,4.95320588]
[1733800588592,10.6385431,212.07,211.93,4.95320588]
[1733800588764,10.6385431,212.07,211.9,4.95320588]
[1733800588765,0.6385431,212.07,211.9,4.95320588]
[1733800588958,0.6385431,212.07,211.95,4.95320588]
[1733800589164,0.6385431,212.07,211.96,0.70744911]
[1733800589484,0.6385431,212.07,211.97,4.95320588]
[1733800589687,0.6385431,212.07,211.98,5.66051487]
[1733800589985,0.6385431,212.07,212.06,4.95320588]
[1733800590361,0.6385431,212.07,212.03,4.95320588]
[1733800590554,0.6385431,212.07,211.98,0.70730899]
[1733800590759,0.6385431,212.07,211.92,4.95320588]
[1733800591008,0.6385431,212.07,211.86,0.70755428]
[1733800591167,13.5472431,212.07,211.81,4.95320588]
[1733800591367,3.5472431,212.07,211.85,4.95320588]
[1733800591890,20.12549,211.98,211.81,4.95320588]
[1733800592067,20.12549,211.98,211.69,27.16614639]
[1733800592068,20.0,211.96,211.75,0.70777234]
[1733800592268,0.12549,211.91,211.71,4.95320588]
[1733800592474,0.12549,211.91,211.72,5.66136254]
[1733800592660,5.04679412,211.9,211.72,0.70815666]
[1733800592858,0.12549,211.89,211.7,4.95320588]
[1733800593062,0.12549,211.87,211.69,7.16614639]
[1733800593374,0.12549,211.87,211.7,0.70844616]
[1733800593892,20.12549,211.9,211.73,4.95320588]
[1733800594064,0.12549,211.9,211.76,4.95320588]
[1733800594259,6.4407,212.01,211.84,4.95320588]
[1733800594681,6.4407,212.01,211.8,4.95320588]
[1733800594998,6.4407,212.01,211.85,4.95320588]
[1733800595201,6.4407,212.01,211.87,4.95320588]
[1733800595496,6.4407,212.01,211.84,4.95320588]
[1733800595676,6.4407,212.01,211.85,5.66097867]
[1733800596280,6.4407,212.01,211.88,4.95320588]
[1733800596478,6.4407,212.01,211.86,4.95320588]
[1733800596689,6.4407,212.01,211.82,4.95320588]
[1733800597002,5.04679412,211.97,211.71,5.66114285]
[1733800597366,5.04679412,211.96,211.72,4.95320588]
[1733800597566,0.12549,211.93,211.72,4.95320588]
[1733800597771,20.12549,211.93,211.72,4.95320588]
[1733800597968,20.0,211.89,211.72,4.95320588]
[1733800598284,20.12549,211.93,211.75,4.95320588]
[1733800598785,20.12549,211.93,211.77,4.95320588]
[1733800598984,20.12549,211.93,211.79,4.95320588]
[1733800599299,6.4407,212.01,211.84,4.95320588]
[1733800599484,6.4407,212.01,211.86,4.95320588]
[1733800599684,6.4407,212.01,211.87,4.95320588]
[1733800599888,6.4407,212.01,211.89,4.95320588]
[1733800600288,6.4407,212.01,211.91,4.95320588]
[1733800600495,6.4407,212.01,211.89,4.95320588]
[1733800600695,6.4407,212.01,211.87,4.95320588]
[1733800601080,20.0,211.98,211.87,4.95320588]
[1733800601286,20.0,211.98,211.89,4.95320588]
[1733800601821,20.0,212.04,211.89,4.95320588]
[1733800601985,25.04679412,212.04,211.85,4.95320588]
[1733800602179,20.0,212.04,211.85,5.66105295]
[1733800602506,20.0,212.01,211.86,5.66095415]
[1733800602697,20.12549,212.03,211.89,4.95320588]
[1733800602886,20.12549,212.03,211.86,4.95320588]
[1733800603082,20.0,211.96,211.82,4.95320588]
[1733800603284,20.0,211.96,211.71,5.66119234]
[1733800603285,20.0,211.89,211.71,5.66119234]
[1733800603491,0.12549,211.88,211.71,4.95320588]
[1733800603680,20.0,211.85,211.69,4.95320588]
[1733800603884,0.12549,211.84,211.67,4.95320588]
[1733800604098,0.12549,211.78,211.62,4.95320588]
[1733800604303,0.12549,211.78,211.6,4.95320588]
[1733800604669,0.12549,211.78,211.58,4.95320588]
[1733800604874,0.12549,211.78,211.59,0.70868062]
[1733800605079,0.12549,211.78,211.58,4.95320588]
[1733800605080,20.0,211.75,211.58,4.95320588]
[1733800605290,20.12549,211.74,211.56,4.95320588]
[1733800605620,20.12549,211.69,211.52,4.95320588]
[1733800605908,20.12549,211.69,211.48,4.95320588]
[1733800606093,20.12549,211.69,211.54,4.95320588]
[1733800606296,0.12549,211.7,211.57,4.95320588]
[1733800606599,70.0,211.81,211.48,4.95320588]
[1733800606600,0.12549,211.68,211.48,4.95320588]
[1733800606797,0.12549,211.66,211.49,0.70905157]
[1733800607506,0.12549,211.66,211.36,20.0]
[1733800607507,0.12549,211.58,211.37,5.66239116]
[1733800607680,6.403,211.65,211.44,38.41514552]
[1733800607884,10.0,211.73,211.49,4.95320588]
[1733800608086,5.04679412,211.7,211.49,4.95320588]
[1733800608318,5.04679412,211.71,211.5,4.95320588]
[1733800609090,5.04679412,211.71,211.37,10.0]
[1733800609091,20.0,211.36,211.26,0.6385431]
[1733800609406,10.0,211.4,211.13,28.65998745]
[1733800609407,2.9537,211.26,211.13,28.65998745]
[1733800610188,0.12549,211.26,211.25,10.0]
[1733800610801,0.12549,211.26,211.19,0.70978021]
[1733800610802,0.12549,211.26,211.2,10.0]
[1733800611290,0.12549,211.26,211.21,10.0]
[1733800611617,0.12549,211.26,211.18,10.0]
[1733800612085,0.12549,211.26,211.2,10.0]
[1733800612290,0.12549,211.26,211.18,10.0]
[1733800612492,0.12549,211.26,211.23,10.0]
[1733800612904,0.12549,211.26,211.14,312.0]
[1733800612905,80.0,211.48,211.27,10.0]
[1733800613211,10.0,211.44,211.25,10.0]
[1733800613520,10.0,211.44,211.23,10.0]
[1733800613685,10.0,211.44,211.17,0.70985267]
[1733800613686,10.0,211.4,211.19,10.0]
[1733800613890,10.0,211.34,211.12,10.0]
[1733800614197,0.12549,211.28,211.09,10.0]
[1733800614513,20.12549,211.24,211.08,10.4446563]
[1733800614896,0.12549,211.24,211.15,10.0]
[1733800615100,0.12549,211.24,211.17,10.0]
[1733800615294,0.12549,211.24,211.15,10.0]
[1733800615692,0.12549,211.24,211.13,10.0]
[1733800616798,0.12549,211.24,211.1,10.0]
[1733800617420,14.6152755,211.33,211.08,10.4446563]
[1733800617421,0.12549,211.25,211.08,10.4446563]
[1733800617620,0.12549,211.23,211.09,10.0]
[1733800618202,0.12549,211.23,211.13,10.0]
[1733800618415,0.12549,211.23,211.08,0.4446563]
[1733800618710,20.12549,211.23,211.08,0.4446563]
[1733800619229,0.12549,211.23,211.08,0.4446563]
[1733800619528,0.12549,211.21,211.08,0.4446563]
[1733800619694,0.12549,211.21,211.09,10.0]
[1733800620027,0.12549,211.2,211.08,10.4446563]
[1733800620193,0.12549,211.2,211.08,0.4446563]
[1733800620606,20.0,211.19,210.95,0.71067678]
[1733800620817,0.12549,211.16,210.92,10.0]
[1733800621019,0.12549,211.16,210.89,0.71084601]
[1733800621020,10.0,211.15,210.9,10.0]
[1733800621235,0.12549,211.09,210.9,10.0]
[1733800621915,14.39549,211.09,210.88,10.0]
[1733800622121,0.12549,211.05,210.87,10.0]
[1733800622335,0.12549,210.99,210.83,0.6934595]
[1733800622643,20.12549,210.99,210.83,0.6934595]
[1733800623212,20.0,210.94,210.83,0.6934595]
[1733800623426,20.0,210.92,210.69,10.71158689]
[1733800623622,20.0,210.92,210.57,0.6934595]
[1733800623623,20.0,210.88,210.65,0.71173845]
[1733800623832,0.12549,210.85,210.67,10.0]
[1733800624137,20.12549,210.85,210.74,10.0]
[1733800624517,0.12549,210.85,210.67,10.0]
[1733800624825,0.12549,210.87,210.67,10.0]
[1733800625224,251.17525888,211.02,210.8,10.0]
[1733800625535,236.90525888,211.02,210.83,10.0]
[1733800625718,70.0,210.98,210.74,10.0]
[1733800625913,10.0,210.91,210.63,10.0]
[1733800626121,10.0,210.87,210.63,10.0]
[1733800626337,70.0,210.8,210.63,10.0]
[1733800626511,9.3567,210.83,210.65,10.0]
[1733800626715,0.12549,210.79,210.68,10.0]
[1733800627024,20.12549,210.79,210.63,10.0]
[1733800627518,0.12549,210.77,210.63,10.0]
[1733800627735,0.12549,210.77,210.66,10.0]
[1733800627910,0.12549,210.77,210.64,10.0]
[1733800628110,0.12549,210.79,210.63,10.0]
[1733800628324,0.12549,210.77,210.63,10.0]
[1733800629050,20.0,210.72,210.57,0.6934595]
[1733800629340,0.12549,210.66,210.55,10.0]
[1733800630137,0.12549,210.66,210.57,10.0]
[1733800630347,0.12549,210.66,210.62,10.0]
[1733800630544,0.12549,210.66,210.57,10.0]
[1733800630712,0.12549,210.66,210.53,10.0]
[1733800630913,0.12549,210.66,210.52,10.0]
[1733800631142,20.0,210.66,210.51,114.44566388]
[1733800631347,0.12549,210.65,210.51,114.44566388]
[1733800631720,0.12549,210.65,210.59,10.0]
[1733800632022,79.3567,210.83,210.7,10.0]
[1733800632213,9.3567,210.83,210.57,0.71211205]
[1733800632626,70.0,210.77,210.52,10.0]
[1733800632849,10.0,210.76,210.51,114.44566388]
[1733800633162,70.0,210.7,210.57,10.0]
[1733800633446,20.0,210.74,210.55,10.0]
[1733800633648,2.05411,210.79,210.56,0.71223946]
[1733800633832,236.90525888,210.85,210.65,10.0]
[1733800634150,70.0,210.81,210.56,10.0]
[1733800634442,4.6152755,210.8,210.6,10.0]
[1733800634650,9.3567,210.83,210.65,10.0]
[1733800634823,70.0,210.92,210.73,10.0]
[1733800635022,6.2187,210.95,210.78,10.0]
[1733800635255,6.2187,210.95,210.76,10.0]
[1733800635464,6.2187,210.95,210.73,10.0]
[1733800635668,6.2187,210.95,210.63,48.41514552]
[1733800635669,5.83218395,210.94,210.67,10.0]
[1733800635832,6.2187,210.95,210.78,10.0]
[1733800636031,236.90525888,211.01,210.68,0.71166289]
[1733800636032,5.83218395,211.03,210.87,10.0]
[1733800636344,243.12395888,211.09,210.89,10.0]
[1733800636345,6.2187,210.95,210.89,10.0]
[1733800636537,10.0,211.13,210.83,38.41514552]
[1733800636538,5.83218395,211.14,210.95,10.0]
[1733800636743,6.2187,211.2,210.98,10.0]
[1733800636955,236.90525888,211.17,210.89,10.0]
[1733800637261,4.12226552,211.16,210.98,10.0]
[1733800637459,4.12226552,211.16,210.87,20.71087437]
[1733800637659,70.0,211.13,210.87,0.71087437]
[1733800637867,70.0,211.09,210.81,0.71102033]
[1733800638360,70.0,211.1,210.79,38.41514552]
[1733800638666,3.77105119,211.09,210.81,20.0]
[1733800638961,70.0,211.16,210.84,10.0]
[1733800639160,3.77105119,211.14,210.85,0.71100113]
[1733800639359,3.77105119,211.14,210.86,10.0]
[1733800639672,236.90525888,211.17,210.89,38.41514552]
[1733800639836,5.83218395,211.19,210.92,20.0]
[1733800640162,6.2187,211.2,210.93,0.71062861]
[1733800640341,73.77105119,211.19,210.93,0.71062861]
[1733800640540,70.0,211.16,210.86,0.71094187]
[1733800640731,16.2187,211.2,210.86,0.71094187]
[1733800640732,80.0,211.12,210.86,0.71094187]
[1733800640937,80.0,211.12,210.71,3.031]
[1733800640938,20.0,211.05,210.71,41.44614552]
[1733800641258,90.0,210.96,210.69,0.71140199]
[1733800641463,0.12549,210.91,210.69,0.71140199]
[1733800641634,23.902374,210.87,210.71,10.0]
[1733800641837,0.12549,210.83,210.72,0.71141469]
[1733800642065,0.12549,210.83,210.71,48.41514552]
[1733800642265,70.0,211.08,210.75,48.41514552]
[1733800642472,70.0,211.08,210.76,0.71116702]
[1733800642473,23.776884,210.91,210.76,0.71116702]
[1733800642639,20.0,210.84,210.76,0.71116702]
[1733800642842,70.0,211.03,210.73,0.71137327]
[1733800642843,20.0,210.8,210.73,0.71137327]
[1733800643165,20.0,210.8,210.66,0.71158609]
[1733800643346,20.0,210.8,210.67,38.41514552]
[1733800643544,20.0,210.93,210.68,0.7115013]
[1733800643744,20.0,210.85,210.68,0.7115013]
[1733800643968,20.0,210.85,210.75,38.41514552]
[1733800644156,313.12395888,211.09,210.81,38.41514552]
[1733800644357,6.2187,211.09,210.82,0.71108855]
[1733800644749,70.0,211.04,210.77,0.71116177]
[1733800644950,70.0,211.01,210.73,0.71135703]
[1733800645161,70.0,211.06,210.74,38.41514552]
[1733800645360,10.0,211.07,210.74,38.41514552]
[1733800645361,70.0,211.05,210.75,0.71125625]
[1733800645555,243.12395888,211.09,210.79,10.0]
[1733800645760,243.12395888,211.09,210.8,39.12621079]
[1733800645976,14.27,211.08,210.8,39.12621079]
[1733800646280,23.84093416,211.2,210.8,39.12621079]
[1733800646281,75.83218395,211.16,210.84,38.41514552]
[1733800646610,6.2187,211.22,210.92,38.41514552]
[1733800646763,70.0,211.2,210.93,0.71068267]
[1733800646968,76.2187,211.22,210.94,0.71090095]
[1733800647173,76.2187,211.22,210.92,38.41514552]
[1733800647356,82.05088395,211.22,210.93,0.71072433]
[1733800647560,2.9815,211.23,210.94,38.41514552]
[1733800647861,70.6934595,211.21,210.95,0.71069451]
[1733800648179,14.27,211.14,210.86,6.5872]
[1733800648484,70.0,211.03,210.78,0.71111828]
[1733800648644,10.0,211.0,210.75,6.566]
[1733800648850,70.0,211.06,210.76,0.71147662]
[1733800649076,0.12549,211.02,210.76,39.12662214]
[1733800649278,23.902374,211.02,210.78,38.41514552]
[1733800649580,16.1903,211.08,210.79,0.71114296]
[1733800649581,23.902374,210.9,210.79,0.71114296]
[1733800649755,0.12549,210.86,210.79,0.71114296]
[1733800649950,70.0,211.13,210.79,0.71114296]
[1733800649951,84.27,211.13,210.8,38.41514552]
[1733800650171,10.0,211.12,210.82,38.41514552]
[1733800650374,10.0,211.12,210.83,0.7111015]
[1733800650888,10.0,211.14,210.83,0.7111015]
[1733800651083,84.27,211.16,210.83,0.7111015]
[1733800651284,241.52053438,211.17,210.88,48.41514552]
[1733800651485,236.90525888,211.17,210.89,0.71078884]
[1733800651700,80.0,211.15,210.84,0.71075595]
[1733800651860,3.77105119,211.16,210.86,38.41514552]
[1733800652195,236.90525888,211.17,210.86,38.41514552]
[1733800652196,236.90525888,211.17,210.88,38.41514552]
[1733800652361,236.90525888,211.17,210.89,0.71082112]
[1733800652872,6.1903,211.18,210.9,38.41514552]
[1733800653074,5.83218395,211.2,210.92,38.41514552]
[1733800653383,6.1903,211.17,210.93,0.71070008]
[1733800653583,6.1903,211.17,210.91,48.41514552]
[1733800653784,6.1903,211.17,210.95,38.41514552]
[1733800654114,6.1903,211.17,210.97,48.41514552]
[1733800654273,6.1903,211.17,211.01,38.41514552]
[1733800654598,0.6934595,211.21,211.05,48.41514552]
[1733800654892,0.6934595,211.21,211.06,0.71018489]
[1733800655068,0.6934595,211.21,211.07,38.41514552]
[1733800655276,0.6934595,211.21,211.08,0.71012566]
[1733800655477,0.6934595,211.21,211.08,312.71012566]
[1733800655686,0.6934595,211.21,211.01,48.41514552]
[1733800655863,0.6934595,211.21,211.03,38.41514552]
[1733800656067,0.6934595,211.21,211.07,38.41514552]
[1733800656299,0.6934595,211.21,211.08,0.710135]
[1733800656464,0.6934595,211.21,211.09,38.41514552]
[1733800656769,0.6934595,211.21,211.1,0.71008524]
[1733800657196,0.6934595,211.21,211.06,0.7102923]
[1733800657485,0.6934595,211.21,210.98,0.71048969]
[1733800657686,0.12549,211.16,210.96,7.27671675]
[1733800657905,23.902374,211.12,210.96,0.71071675]
[1733800658114,70.6934595,211.21,210.9,0.71086343]
[1733800658115,23.902374,211.04,210.9,0.71086343]
[1733800658280,20.0,210.97,210.86,0.71093736]
[1733800658479,0.12549,210.96,210.86,0.71093736]
[1733800658698,0.12549,210.96,210.87,38.41514552]
[1733800658895,0.12549,210.96,210.85,6.566]
[1733800658896,0.12549,210.96,210.88,0.71086607]
[1733800659079,0.12549,210.96,210.86,0.71104707]
[1733800659282,0.12549,210.96,210.87,0.710918]
[1733800659505,0.12549,210.96,210.86,0.71110355]
[1733800659688,0.12549,210.96,210.82,0.71110175]
[1733800659893,0.12549,210.96,210.73,10.0]
[1733800659894,0.12549,210.96,210.76,0.71121022]
[1733800660100,0.12549,210.96,210.73,38.41514552]
[1733800660101,0.12549,210.96,210.8,0.71121022]
[1733800660281,0.12549,210.96,210.8,0.71132137]
[1733800661915,0.12549,210.96,210.76,0.71132993]
[1733800662683,0.12549,210.96,210.72,0.71138178]
[1733800662684,23.902374,210.89,210.72,0.71138178]
[1733800662891,20.0,210.78,210.69,0.71143951]
[1733800663094,0.12549,210.69,210.65,0.71143951]
[1733800663305,23.902374,210.69,210.62,0.71179739]
[1733800663483,23.902374,210.69,210.59,0.71193205]
[1733800663684,20.0,210.66,210.59,0.71193205]
[1733800663878,23.902374,210.65,210.52,7.18918706]
[1733800664134,23.902374,210.65,210.54,38.41514552]
[1733800664310,0.12549,210.65,210.56,38.41514552]
[1733800664616,0.12549,210.65,210.57,0.71192331]
[1733800664785,0.12549,210.65,210.53,0.71211885]
[1733800664991,0.12549,210.65,210.51,0.71213475]
[1733800665191,0.12549,210.65,210.49,0.71233162]
[1733800665401,0.12549,210.65,210.47,0.71222904]
[1733800665599,0.12549,210.65,210.45,0.71236551]
[1733800666100,0.12549,210.65,210.41,6.4772]
[1733800666101,0.12549,210.65,210.42,0.71251294]
[1733800666313,23.902374,210.67,210.42,0.71251294]
[1733800666514,23.902374,210.63,210.42,0.71251294]
[1733800666726,23.902374,210.55,210.42,39.12765846]
[1733800666897,0.12549,210.51,210.42,39.12765846]
[1733800667227,0.12549,210.51,210.46,38.41514552]
[1733800667407,0.12549,210.51,210.36,42.27668156]
[1733800667408,0.12549,210.51,210.41,38.41514552]
[1733800667610,0.12549,210.51,210.43,38.41514552]
[1733800667813,0.12549,210.51,210.44,0.71236305]
[1733800668324,0.12549,210.51,210.45,38.41514552]
[1733800668627,6.1726,210.78,210.49,38.41514552]
[1733800668826,70.0,210.77,210.5,0.71225812]
[1733800669341,12.00478395,210.78,210.5,0.71225812]
[1733800669534,6.1726,210.78,210.51,38.41514552]